fUST/lending_fUST_20240605
["ID","MTS","AMOUNT","RATE_DAILY","PERIOD"]
[328582510,1717565242268,-346.5309103,0.00018928,2]
[328582511,1717565242290,-461.88468196,0.0002,2]
[328582512,1717565242311,-528.67913693,0.00020997,4]
[328582513,1717565242330,-2204.52766254,0.00020999,2]
[328582514,1717565243091,-252.273769,0.00020999,2]
[328582515,1717565347123,-263.12636468,0.00018928,2]
[328582521,1717565420345,236.87363532,0.000189,2]
[328582565,1717565432479,-39.57541069,0.000189,2]
[328582566,1717565432489,-167.502415,0.00020659,2]
[328582567,1717565432499,-1393.238741,0.00020999,2]
[328582568,1717565432510,-15445.67530347,0.00020999,2]
[328582569,1717565432519,-12845.1977116,0.00020999,2]
[328582571,1717565432529,-225.02004134,0.00020999,2]
[328582572,1717565432539,-3987.57363517,0.00021,2]
[328582574,1717565432549,-169.5,0.00021017,5]
[328582576,1717565432559,-169.5,0.00021696,5]
[328582577,1717565432568,-166.666666,0.00021918,2]
[328582578,1717565432578,-624.16065565,0.00022296,2]
[328582579,1717565432587,-389.25944665,0.00022297,2]
[328582580,1717565432597,-169.5,0.00022376,5]
[328582581,1717565432607,-172.73949374,0.00022396,2]
[328582582,1717565432617,-500.0,0.00022396,2]
[328582583,1717565432626,-1148.51,0.00022396,2]
[328582584,1717565432753,-500.0,0.00022396,2]
[328582585,1717565432764,-500.0,0.00022396,2]
[328582586,1717565432774,-500.0,0.00022396,2]
[328582587,1717565432784,-500.0,0.00022396,2]
[328582588,1717565432794,-500.0,0.00022396,2]
[328582589,1717565432803,-500.0,0.00022396,2]
[328582590,1717565432813,-500.0,0.00022396,2]
[328582591,1717565432825,-500.0,0.00022396,2]
[328582592,1717565432834,-501.4,0.00022396,2]
[328582593,1717565432844,-500.0,0.00022396,2]
[328582594,1717565432853,-500.0,0.00022396,2]
[328582595,1717565432862,-312.49626839,0.00022396,2]
[328582596,1717565432872,-500.0,0.00022396,2]
[328582597,1717565432881,-500.0,0.00022396,2]
[328582598,1717565432891,-500.0,0.00022396,2]
[328582599,1717565432900,-500.0,0.00022396,2]
[328582600,1717565432909,-500.0,0.00022396,2]
[328582601,1717565432918,-500.0,0.00022396,2]
[328582602,1717565432927,-500.0,0.00022396,2]
[328582603,1717565432936,-500.0,0.00022396,2]
[328582604,1717565432945,-500.0,0.00022396,2]
[328582605,1717565432955,-500.0,0.00022396,2]
[328582606,1717565432964,-500.0,0.00022396,2]
[328582607,1717565432974,-500.0,0.00022396,2]
[328582608,1717565432983,-500.0,0.00022396,2]
[328582609,1717565432992,-500.0,0.00022396,2]
[328582610,1717565433001,-500.0,0.00022396,2]
[328582611,1717565433014,-500.0,0.00022396,2]
[328582612,1717565433023,-500.0,0.00022396,2]
[328582613,1717565433033,-314.50359123,0.00022396,2]
[328582614,1717565433042,-500.0,0.00022397,2]
[328582615,1717565433051,-500.0,0.00022397,2]
[328582616,1717565433062,-504.75680313,0.00022397,2]
[328582617,1717565433072,-500.0,0.00022397,2]
[328582618,1717565433081,-360.4,0.00022397,2]
[328582619,1717565433092,-500.0,0.00022397,2]
[328582620,1717565433102,-500.0,0.00022397,2]
[328582621,1717565433112,-500.0,0.00022397,2]
[328582622,1717565433121,-500.0,0.00022397,2]
[328582623,1717565433130,-500.0,0.00022397,2]
[328582624,1717565433140,-500.0,0.00022397,2]
[328582625,1717565433149,-500.0,0.00022397,2]
[328582626,1717565433158,-623.736316,0.00022397,2]
[328582627,1717565433168,-438.69,0.00022397,2]
[328582628,1717565433177,-500.0,0.00022397,2]
[328582629,1717565433186,-500.0,0.00022397,2]
[328582630,1717565433195,-500.0,0.00022397,2]
[328582631,1717565433205,-500.0,0.00022397,2]
[328582632,1717565433214,-500.0,0.00022397,2]
[328582633,1717565433223,-313.12,0.00022397,2]
[328582634,1717565433232,-588.32,0.00022397,2]
[328582635,1717565433242,-764.54,0.00022397,2]
[328582636,1717565433251,-500.0,0.00022397,2]
[328582637,1717565433261,-500.0,0.00022397,2]
[328582638,1717565433270,-500.0,0.00022397,2]
[328582639,1717565433279,-500.0,0.00022397,2]
[328582640,1717565433288,-500.0,0.00022397,2]
[328582641,1717565433298,-500.0,0.00022397,2]
[328582642,1717565433307,-500.0,0.00022397,2]
[328582643,1717565433316,-207.23902568,0.00022397,2]
[328582648,1717565438517,-190.06406626,0.00020899,2]
[328582649,1717565438527,-568.44231144,0.00022295,2]
[328582650,1717565438536,-110.77053701,0.00022396,4]
[328582651,1717565438603,-417.90859992,0.00022396,4]
[328582652,1717565438612,-292.76097432,0.00022397,2]
[328582653,1717565438621,-500.0,0.00022397,2]
[328582654,1717565438631,-500.0,0.00022397,2]
[328582655,1717565438640,-500.0,0.00022397,2]
[328582656,1717565438649,-500.0,0.00022397,2]
[328582657,1717565438659,-500.0,0.00022397,2]
[328582658,1717565438668,-500.0,0.00022397,2]
[328582659,1717565438678,-500.0,0.00022397,2]
[328582660,1717565438687,-500.0,0.00022397,2]
[328582661,1717565438697,-500.0,0.00022397,2]
[328582662,1717565438706,-500.0,0.00022397,2]
[328582663,1717565438716,-342.56555776,0.00022397,2]
[328582664,1717565438728,-157.43444224,0.00022397,2]
[328582665,1717565438739,-500.0,0.00022397,2]
[328582666,1717565438749,-500.0,0.00022397,2]
[328582667,1717565438758,-500.0,0.00022397,2]
[328582668,1717565438770,-500.0,0.00022397,2]
[328582669,1717565438780,-500.0,0.00022397,2]
[328582670,1717565438790,-500.0,0.00022397,2]
[328582671,1717565438800,-136.6773439,0.00022397,2]
[328582681,1717565445493,-363.3226561,0.00022397,2]
[328582682,1717565445503,-133.04261705,0.00022397,2]
[328582683,1717565445515,-366.95738295,0.00022397,2]
[328582684,1717565445525,-500.0,0.00022397,2]
[328582685,1717565445535,-500.0,0.00022397,2]
[328582686,1717565445545,-500.0,0.00022397,2]
[328582687,1717565445555,-553.51,0.00022397,2]
[328582688,1717565445565,-500.0,0.00022397,2]
[328582689,1717565445574,-500.0,0.00022397,2]
[328582690,1717565445583,-8747.17212239,0.00022398,2]
[328582691,1717565445594,-167.55074595,0.00022398,2]
[328582692,1717565445603,-300.01081618,0.00022398,2]
[328582693,1717565445613,-1757.04287581,0.00022398,2]
[328582704,1717566309317,568.44231144,9.999e-05,2]
[328582705,1717566313886,526.09370831,9.999e-05,2]
[328582706,1717566339170,-759.10159138,0.00019999,2]
[328582707,1717566379552,1000.0,0.00025,60]
[328582708,1717566433098,-682.04416787,0.00019999,2]
[328582709,1717566442085,-675.80756639,0.00019999,2]
[328582710,1717566445086,-150.0,0.00019999,2]
[328582738,1717566632690,-19295.71547601,0.00019998,2]
[328582739,1717566632700,-568.44231144,0.00019998,2]
[328582741,1717566632710,-4001.21441928,0.00019999,2]
[328582743,1717566632719,-16181.63149089,0.00019999,2]
[328582744,1717566632729,-12837.08118609,0.0002,2]
[328582745,1717566632739,-1354.21950592,0.0002,2]
[328582746,1717566632748,-528.67913693,0.00020297,4]
[328582747,1717566632757,-3463.9167255,0.00020428,2]
[328582748,1717566632768,-3988.29697865,0.00021,2]
[328582749,1717566632777,-729.7140157,0.00021,2]
[328582751,1717566632786,-198.3,0.00021014,5]
[328582753,1717566632795,-198.3,0.00021694,5]
[328582754,1717566632804,-166.666666,0.00021918,2]
[328582755,1717566632814,-1000.0,0.00022,4]
[328582756,1717566632823,-4235.50878984,0.0002203,2]
[328582757,1717566632832,-624.16065565,0.00022149,2]
[328582758,1717566632842,-150.0,0.0002215,2]
[328582760,1717566632851,-177.34514417,0.00022295,2]
[328582761,1717566632860,-198.3,0.00022373,5]
[328582763,1717566632870,-240.82,0.00022384,3]
[328582765,1717566632879,-479.38928791,0.00022392,2]
[328582766,1717566632889,-332.00887731,0.00022392,2]
[328582767,1717566632898,-464.969844,0.00022392,2]
[328582776,1717566639679,-500.0,0.00021917,2]
[328582777,1717566639688,-500.0,0.00022191,2]
[328582778,1717566639698,-500.0,0.00022393,2]
[328582779,1717566639707,-500.0,0.00022393,2]
[328582780,1717566639716,-500.0,0.00022393,2]
[328582781,1717566639726,-786.42,0.00022393,2]
[328582782,1717566639735,-500.0,0.00022393,2]
[328582783,1717566639744,-500.0,0.00022393,2]
[328582784,1717566639754,-13.77943,0.00022393,2]
[328582806,1717566644419,-3491.84258286,0.00019999,2]
[328582808,1717566644428,-3269.54177469,0.00021753,2]
[328582809,1717566644438,-3269.54177469,0.0002195,2]
[328582810,1717566644447,-486.22057,0.00022393,2]
[328582811,1717566644457,-500.0,0.00022393,2]
[328582812,1717566644466,-545.98179842,0.00022393,2]
[328582813,1717566644475,-500.0,0.00022393,2]
[328582814,1717566644484,-503.95780818,0.00022393,2]
[328582815,1717566644494,-500.0,0.00022393,2]
[328582816,1717566644503,-500.0,0.00022393,2]
[328582817,1717566644512,-500.0,0.00022393,2]
[328582818,1717566644522,-500.0,0.00022393,2]
[328582819,1717566644533,-500.0,0.00022393,2]
[328582820,1717566644543,-1166.68,0.00022393,2]
[328582821,1717566644552,-500.0,0.00022393,2]
[328582822,1717566644562,-500.0,0.00022393,2]
[328582823,1717566644572,-500.0,0.00022393,2]
[328582824,1717566644581,-500.0,0.00022393,2]
[328582825,1717566644591,-500.0,0.00022393,2]
[328582826,1717566644600,-500.0,0.00022393,2]
[328582827,1717566644610,-500.0,0.00022393,2]
[328582828,1717566644619,-500.0,0.00022393,2]
[328582829,1717566644629,-500.0,0.00022393,2]
[328582830,1717566644638,-220.39300029,0.00022393,2]
[328582831,1717566644648,-500.0,0.00022393,2]
[328582832,1717566644657,-500.0,0.00022393,2]
[328582833,1717566644667,-500.0,0.00022393,2]
[328582834,1717566644676,-500.0,0.00022393,2]
[328582835,1717566644685,-500.0,0.00022393,2]
[328582836,1717566644695,-645.39,0.00022393,2]
[328582837,1717566644704,-500.0,0.00022393,2]
[328582838,1717566644713,-500.0,0.00022393,2]
[328582839,1717566644722,-500.0,0.00022394,2]
[328582840,1717566644731,-500.0,0.00022394,2]
[328582841,1717566644740,-500.0,0.00022394,2]
[328582842,1717566644749,-500.0,0.00022394,2]
[328582843,1717566644759,-500.0,0.00022394,2]
[328582844,1717566644768,-500.0,0.00022394,2]
[328582845,1717566644777,-500.0,0.00022394,2]
[328582846,1717566644787,-459.96732997,0.00022394,2]
[328582847,1717566644900,-40.03267003,0.00022394,2]
[328582848,1717566644909,-500.0,0.00022394,2]
[328582849,1717566644918,-500.0,0.00022394,2]
[328582850,1717566644927,-500.0,0.00022394,2]
[328582851,1717566644937,-255.57648648,0.00022394,2]
[328582852,1717566644946,-500.0,0.00022394,2]
[328582853,1717566644955,-500.0,0.00022394,2]
[328582854,1717566644964,-500.0,0.00022394,2]
[328582855,1717566644973,-500.0,0.00022394,2]
[328582856,1717566644982,-500.0,0.00022394,2]
[328582857,1717566644991,-500.0,0.00022394,2]
[328582858,1717566645000,-500.0,0.00022394,2]
[328582859,1717566645009,-500.0,0.00022394,2]
[328582861,1717566645019,-500.0,0.00022394,2]
[328582862,1717566645028,-500.0,0.00022394,2]
[328582864,1717566645039,-164.85842101,0.00022395,2]
[328582865,1717566645048,-500.0,0.00022395,2]
[328582866,1717566645057,-522.86449549,0.00022395,2]
[328582867,1717566645066,-500.0,0.00022395,2]
[328582868,1717566645075,-500.0,0.00022396,2]
[328582870,1717566645084,-500.0,0.00022396,2]
[328582871,1717566645093,-500.0,0.00022396,2]
[328582872,1717566645102,-427.42960169,0.00022396,2]
[328582873,1717566645112,-362.18985598,0.00022396,2]
[328582874,1717566645121,-272.94590138,0.00022396,2]
[328582876,1717566645131,-470.66474093,0.00022396,2]
[328582877,1717566645140,-195.59961382,0.00022396,2]
[328582878,1717566645149,-521.15105648,0.00022397,2]
[328582879,1717566645159,-3009.56220489,0.00022398,2]
[328582880,1717566645168,-2277.786684,0.00022398,10]
[328582881,1717566645177,-166.666666,0.00022431,2]
[328582882,1717566645186,-173.63,0.00022465,2]
[328582883,1717566645195,-4840.80160182,0.000225,2]
[328582884,1717566645223,-839.26105,0.000225,2]
[328582897,1717566648524,-12666.86625957,0.000225,2]
[328582898,1717566648535,-10628.38718362,0.000225,2]
[328582899,1717566697912,190.02965484,9.999e-05,2]
[328582900,1717566697932,235.39723338,9.999e-05,2]
[328582901,1717566697950,151.0,9.999e-05,2]
[328582902,1717566697970,182.99437804,9.999e-05,2]
[328582903,1717567377948,568.44231144,9.999e-05,2]
[328582904,1717567547591,-520.41874038,0.0002,2]
[328582905,1717567641109,-436.40214198,0.00019999,2]
[328582906,1717567643094,-132.04016946,0.00019999,2]
[328582907,1717567643117,-285.57659246,0.0002,2]
[328582908,1717567645123,-434.85403145,0.0002,2]
[328582956,1717567831693,168.600973,0.000189,2]
[328582965,1717567832036,-157.03141364,0.000189,2]
[328582966,1717567832046,-568.44231144,0.00019999,2]
[328582967,1717567832055,-28599.37607633,0.0002,2]
[328582968,1717567832065,-867.16047347,0.00020171,2]
[328582969,1717567832074,-24900.0,0.00020269,2]
[328582970,1717567832083,-166.6553116,0.00020271,2]
[328582971,1717567832093,-468.062706,0.00020423,2]
[328582972,1717567832102,-180.6,0.00020898,3]
[328582973,1717567832112,-190.06406626,0.00020899,2]
[328582974,1717567832121,-166.896577,0.0002107,2]
[328582975,1717567832130,-867.16047346,0.00021418,2]
[328582976,1717567832140,-180.6,0.00021588,5]
[328582977,1717567832261,-177.34514414,0.00021817,2]
[328582978,1717567832297,-500.0,0.00021899,2]
[328582979,1717567832307,-500.0,0.00021899,2]
[328582980,1717567832316,-411.5667882,0.00021899,2]
[328582981,1717567832325,-500.0,0.00021899,2]
[328582982,1717567832334,-9118.8282885,0.000219,2]
[328582983,1717567832343,-500.0,0.00021917,2]
[328582984,1717567832352,-500.0,0.00021917,2]
[328582985,1717567832361,-500.0,0.00021917,2]
[328582986,1717567832371,-500.0,0.00021917,2]
[328582987,1717567832380,-500.0,0.00021917,2]
[328582988,1717567832389,-500.0,0.00021917,2]
[328582989,1717567832398,-500.0,0.00021917,2]
[328582990,1717567832408,-500.0,0.00021917,2]
[328582991,1717567832417,-1030.98,0.00021917,2]
[328582992,1717567832427,-534.65787274,0.00021917,2]
[328582993,1717567832436,-500.0,0.00021917,2]
[328582994,1717567832445,-500.0,0.00021917,2]
[328582995,1717567832454,-500.0,0.00021917,2]
[328582996,1717567832463,-500.0,0.00021917,2]
[328582997,1717567832474,-500.0,0.00021917,2]
[328582998,1717567832483,-500.0,0.00021917,2]
[328582999,1717567832493,-500.0,0.00021917,2]
[328583000,1717567832502,-500.0,0.00021917,2]
[328583001,1717567832511,-500.0,0.00021917,2]
[328583002,1717567832521,-500.0,0.00021917,2]
[328583003,1717567832531,-1297.04,0.00021917,2]
[328583004,1717567832540,-500.0,0.00021917,2]
[328583005,1717567832550,-500.0,0.00021917,2]
[328583006,1717567832559,-500.0,0.00021917,2]
[328583007,1717567832568,-500.0,0.00021917,2]
[328583008,1717567832577,-500.0,0.00021917,2]
[328583009,1717567832586,-500.0,0.00021917,2]
[328583010,1717567832595,-500.0,0.00021917,2]
[328583011,1717567832604,-500.0,0.00021917,2]
[328583012,1717567832615,-500.0,0.00021917,2]
[328583013,1717567832625,-500.0,0.00021917,2]
[328583014,1717567832635,-500.0,0.00021917,2]
[328583015,1717567832645,-500.0,0.00021917,2]
[328583016,1717567832654,-523.5,0.00021917,2]
[328583017,1717567832663,-500.0,0.00021917,2]
[328583018,1717567832673,-500.0,0.00021917,2]
[328583019,1717567832682,-166.666666,0.00021918,2]
[328583020,1717567832692,-1000.0,0.00022,9]
[328583021,1717567832702,-624.16065565,0.000221,2]
[328583022,1717567832714,-363.43,0.0002218,3]
[328583023,1717567832724,-490.0,0.00022189,2]
[328583024,1717567832733,-322.15625615,0.00022189,2]
[328583025,1717567832743,-450.95688966,0.00022189,2]
[328583026,1717567832753,-500.0,0.00022189,2]
[328583027,1717567832763,-491.19942228,0.00022189,2]
[328583028,1717567832779,-500.0,0.00022189,2]
[328583029,1717567832789,-500.0,0.00022189,2]
[328583030,1717567832799,-500.0,0.00022189,2]
[328583031,1717567832809,-423.88028478,0.00022189,2]
[328583032,1717567832819,-308.79,0.0002219,2]
[328583033,1717567832829,-240.56543612,0.0002219,2]
[328583034,1717567832839,-500.0,0.0002219,2]
[328583035,1717567832850,-500.0,0.0002219,2]
[328583036,1717567832860,-500.0,0.0002219,2]
[328583037,1717567832871,-500.0,0.0002219,2]
[328583038,1717567832881,-500.0,0.0002219,2]
[328583039,1717567832890,-500.0,0.0002219,2]
[328583040,1717567832899,-500.0,0.0002219,2]
[328583041,1717567832909,-500.0,0.0002219,2]
[328583042,1717567832918,-500.0,0.0002219,2]
[328583043,1717567832928,-500.0,0.0002219,2]
[328583044,1717567832938,-500.0,0.0002219,2]
[328583045,1717567832947,-171.32421876,0.0002219,2]
[328583046,1717567832957,-500.0,0.0002219,2]
[328583047,1717567832967,-500.0,0.0002219,2]
[328583048,1717567832977,-500.0,0.0002219,2]
[328583049,1717567832986,-500.0,0.0002219,2]
[328583050,1717567832995,-500.0,0.0002219,2]
[328583051,1717567833005,-500.0,0.0002219,2]
[328583052,1717567833014,-500.0,0.0002219,2]
[328583053,1717567833024,-500.0,0.0002219,2]
[328583054,1717567833033,-500.0,0.0002219,2]
[328583055,1717567833042,-988.18,0.0002219,2]
[328583056,1717567833051,-500.0,0.0002219,2]
[328583057,1717567833061,-614.75,0.0002219,2]
[328583058,1717567833071,-209.05826689,0.0002219,2]
[328583059,1717567833080,-500.0,0.0002219,2]
[328583060,1717567833090,-500.0,0.0002219,2]
[328583061,1717567833099,-500.0,0.0002219,2]
[328583062,1717567833108,-500.0,0.0002219,2]
[328583063,1717567833119,-500.0,0.0002219,2]
[328583064,1717567833128,-500.0,0.0002219,2]
[328583065,1717567833138,-500.0,0.0002219,2]
[328583066,1717567833147,-500.0,0.0002219,2]
[328583067,1717567833156,-500.0,0.0002219,2]
[328583068,1717567833165,-500.0,0.0002219,2]
[328583069,1717567833174,-500.0,0.0002219,2]
[328583070,1717567833183,-500.0,0.0002219,2]
[328583071,1717567833193,-363.58160217,0.0002219,2]
[328583072,1717567835991,155.43532915,0.00014,2]
[328583073,1717567836010,151.0,0.00014,2]
[328583074,1717567836032,617.09211401,0.00014,2]
[328583105,1717567840625,-947.01,0.00021917,2]
[328583107,1717567840634,-138.97922107,0.0002219,2]
[328583109,1717567840644,-500.0,0.0002219,2]
[328583111,1717567840653,-504.48558264,0.0002219,2]
[328583113,1717567840662,-500.0,0.0002219,2]
[328583115,1717567840672,-292.14,0.00022191,2]
[328583117,1717567840681,-500.0,0.00022191,2]
[328583119,1717567840691,-500.0,0.00022191,2]
[328583121,1717567840700,-378.94519629,0.00022191,2]
[328583260,1717567843441,-121.05480371,0.00022191,2]
[328583261,1717567843450,-256.17288975,0.00022191,2]
[328583262,1717567843460,-8.76131554,0.00022191,2]
[328583263,1717567843471,-394.22731001,0.00022191,2]
[328583302,1717567917221,1341.79368493,0.00018,2]
[328583303,1717567917246,1419.96725313,0.00018,2]
[328583313,1717568753502,638.5498017,0.0001,2]
[328583315,1717568791153,-260.12980989,0.00016746,2]
[328583316,1717568791175,-890.44222959,0.00016845,2]
[328583318,1717568832356,300.09768405,0.0001,2]
[328583319,1717568836114,-568.44231144,0.00016844,2]
[328583320,1717568836135,-169.69243791,0.00016847,2]
[328583321,1717568836156,-2685.70661711,0.00017687,2]
[328583322,1717568836180,-604.45715957,0.00017688,2]
[328583323,1717568840171,-405.755976,0.00017688,2]
[328583324,1717568846357,302.68896786,0.0001,2]
[328583325,1717568852146,-266.08884699,0.00017688,2]
[328583327,1717568952353,-16893.89753499,0.00017688,2]
[328583328,1717568952373,-263.12636468,0.00019063,2]
[328583329,1717568952392,-168.600973,0.00019178,2]
[328583330,1717568952412,-166.896577,0.00019178,2]
[328583331,1717568952432,-3730.1225967,0.00019305,2]
[328583332,1717568952452,-234.031353,0.00019374,2]
[328583483,1717569037627,237.81535301,0.000189,2]
[328583491,1717569038186,-451.22017728,0.000189,2]
[328583492,1717569038196,-528.67913693,0.0002009,4]
[328583493,1717569038206,-7366.84033526,0.00021,2]
[328583494,1717569038216,-163.1,0.00021011,5]
[328583495,1717569038225,-163.1,0.00021691,5]
[328583496,1717569038234,-874.57311807,0.00021816,2]
[328583497,1717569038244,-746.95782433,0.00021817,2]
[328583498,1717569038254,-3486.5699255,0.00021898,2]
[328583499,1717569038297,-2838.17593004,0.00021898,2]
[328583500,1717569038309,-1452.79973995,0.00021898,2]
[328583501,1717569038349,-117.10330601,0.00021898,2]
[328583606,1717569151226,156.86510884,9.999e-05,2]
[328583615,1717569751812,568.44231144,9.999e-05,2]
[328583616,1717569811734,2079.62191966,9.999e-05,2]
[328583617,1717569820728,272.3727093,9.999e-05,2]
[328583619,1717569903592,2061.00436164,9.999e-05,2]
[328583620,1717569936495,154.95351395,9.999e-05,2]
[328583622,1717570032169,-839.39608869,0.00017266,2]
[328583630,1717570148595,-10534.88073846,0.00017261,2]
[328583631,1717570148617,-42073.99799306,0.00017261,2]
[328583632,1717570148637,-3069.90171711,0.00017262,2]
[328583633,1717570148661,-59539.43143747,0.00017262,2]
[328583634,1717570148684,-9258.45198765,0.00017263,2]
[328583635,1717570148827,-10037.26348836,0.00017263,2]
[328583636,1717570148855,-165.7488747,0.00017267,2]
[328583637,1717570148877,-15427.02817285,0.00017897,7]
[328583638,1717570148898,-10480.39529953,0.00017898,2]
[328583639,1717570148919,-597.56625948,0.00017924,2]
[328583640,1717570148939,-997.27605152,0.00017925,2]
[328583641,1717570148959,-568.44231144,0.00018029,2]
[328583642,1717570148978,-345.9276689,0.0001803,2]
[328583643,1717570148996,-151.0,0.00018231,2]
[328583644,1717570149016,-151.0,0.00018231,2]
[328583645,1717570149038,-151.896778,0.00018231,2]
[328583646,1717570149059,-253.712921,0.00018231,2]
[328583647,1717570149083,-253.712921,0.00018231,2]
[328583648,1717570149103,-673.990861,0.00018231,2]
[328583649,1717570149124,-673.990861,0.00018231,2]
[328583650,1717570149146,-673.990861,0.00018231,2]
[328583651,1717570149168,-673.990861,0.00018231,2]
[328583652,1717570149190,-151.0,0.00018231,2]
[328583653,1717570149212,-151.0,0.00018231,2]
[328583654,1717570149232,-151.0,0.00018231,2]
[328583655,1717570149254,-151.0,0.00018231,2]
[328583656,1717570149277,-151.0,0.00018231,2]
[328583657,1717570149297,-151.0,0.00018231,2]
[328583658,1717570149317,-151.0,0.00018231,2]
[328583659,1717570149343,-151.0,0.00018231,2]
[328583660,1717570149365,-19603.68487062,0.00018231,2]
[328583661,1717570149386,-151.0,0.00018233,2]
[328583662,1717570149408,-151.0,0.00018233,2]
[328583663,1717570149431,-253.712921,0.00018233,2]
[328583664,1717570149454,-253.712921,0.00018233,2]
[328583665,1717570149476,-3000.0,0.00018233,2]
[328583666,1717570149498,-366.581895,0.00018748,2]
[328583667,1717570149521,-597.56625945,0.00018897,2]
[328583668,1717570167908,151.0,0.00018231,2]
[328583669,1717570171969,151.0,0.00018231,2]
[328583670,1717570175341,151.0,0.00018231,2]
[328583672,1717570189880,151.0,0.00018231,2]
[328583673,1717570192343,151.0,0.00018231,2]
[328583674,1717570192374,188.297997,0.00018231,2]
[328583675,1717570196785,188.297997,0.00018231,2]
[328583677,1717570207706,380.832967,0.00018231,2]
[328583678,1717570212699,380.832967,0.00018231,2]
[328583679,1717570218417,874.77023486,9.999e-05,2]
[328583712,1717570232669,-525.52217985,0.000189,2]
[328583714,1717570232679,-250.0,0.00018973,2]
[328583716,1717570232688,-151.0,0.00019178,2]
[328583718,1717570232697,-164.805751,0.000192,2]
[328583720,1717570232706,-253.712921,0.000192,2]
[328583722,1717570232715,-253.712921,0.000192,2]
[328583724,1717570232724,-673.990861,0.000192,2]
[328583726,1717570232733,-673.990861,0.000192,2]
[328583729,1717570232743,-151.0,0.000192,2]
[328583730,1717570232752,-151.0,0.000192,2]
[328583733,1717570232762,-151.0,0.000192,2]
[328583734,1717570232771,-151.0,0.000192,2]
[328583736,1717570232780,-151.0,0.000192,2]
[328583738,1717570232789,-151.0,0.000192,2]
[328583740,1717570232799,-151.0,0.000192,2]
[328583743,1717570232809,-151.0,0.000192,2]
[328583745,1717570232818,-151.0,0.000192,2]
[328583746,1717570232827,-158.970405,0.000192,2]
[328583748,1717570232836,-151.0,0.000192,2]
[328583750,1717570232846,-151.0,0.000192,2]
[328583752,1717570232855,-188.297997,0.000192,2]
[328583754,1717570232864,-188.297997,0.000192,2]
[328583756,1717570232873,-380.832967,0.000192,2]
[328583758,1717570232882,-380.832967,0.000192,2]
[328583760,1717570232891,-7698.18219116,0.000192,2]
[328583769,1717570233033,-2132.82,0.000192,2]
[328583770,1717570233058,-15058.99780884,0.000192,2]
[328583771,1717570233066,-151.0,0.00019224,2]
[328583772,1717570233076,-151.0,0.00019224,2]
[328583773,1717570233087,-151.0,0.00019224,2]
[328583774,1717570233097,-151.0,0.00019224,2]
[328583775,1717570233106,-151.0,0.00019224,2]
[328583776,1717570233115,-151.0,0.00019224,2]
[328583777,1717570233125,-151.0,0.00019224,2]
[328583778,1717570233135,-153.488239,0.00019224,2]
[328583779,1717570233144,-188.297997,0.00019224,2]
[328583780,1717570233154,-188.297997,0.00019224,2]
[328583781,1717570233164,-380.832967,0.00019224,2]
[328583782,1717570233173,-380.832967,0.00019224,2]
[328583783,1717570233182,-597.56625945,0.00019871,2]
[328583784,1717570233192,-168.44689279,0.0002,2]
[328583785,1717570233202,-12321.08114468,0.0002,2]
[328583786,1717570233211,-151.0,0.0002,2]
[328583787,1717570233220,-151.0,0.0002,2]
[328583788,1717570233230,-151.0,0.0002,2]